bitfinex-derivatives/quotes_BTCF0:USTF0_20250528
["timestamp","ask_amount","ask_price","bid_price","bid_amount"]
[1748465297216,0.85835555,107460.0,107450.0,0.96101645]
[1748465297411,0.85835555,107460.0,107450.0,0.94837203]
[1748465297623,0.85835555,107460.0,107450.0,0.96101257]
[1748465298012,0.85835555,107460.0,107450.0,0.9610017]
[1748465298415,1.04442795,107460.0,107450.0,0.9610017]
[1748465298616,1.04442795,107460.0,107450.0,0.94837183]
[1748465298917,1.04442795,107460.0,107450.0,0.93428631]
[1748465299116,1.04442795,107460.0,107450.0,0.94837237]
[1748465299628,0.61262795,107460.0,107450.0,0.93428631]
[1748465299921,1.04438795,107460.0,107450.0,0.94837249]
[1748465300231,1.04438795,107460.0,107450.0,0.94837258]
[1748465300529,1.04438795,107460.0,107450.0,0.93428631]
[1748465301619,1.04438795,107460.0,107450.0,0.94837418]
[1748465301822,1.04438795,107460.0,107450.0,0.94837455]
[1748465302130,1.04438795,107460.0,107450.0,0.94837456]
[1748465302530,1.04438795,107460.0,107450.0,0.93428631]
[1748465302832,1.04438795,107460.0,107450.0,0.94837451]
[1748465303921,1.04438795,107460.0,107450.0,0.94833044]
[1748465304427,1.23773211,107460.0,107450.0,0.96096231]
[1748465304723,1.23773211,107460.0,107450.0,0.94833128]
[1748465305637,1.23773211,107460.0,107450.0,0.94832866]
[1748465306534,1.23773211,107460.0,107450.0,0.94832831]
[1748465307231,1.23773211,107460.0,107450.0,0.94832862]
[1748465307434,1.23773211,107460.0,107450.0,0.93424224]
[1748465308225,1.04438795,107460.0,107450.0,0.93424224]
[1748465308623,0.42655555,107460.0,107450.0,1.04933761]
[1748465308831,0.85819555,107460.0,107450.0,1.04933761]
[1748465309652,0.85819555,107460.0,107450.0,1.06342704]
[1748465309829,0.85819555,107460.0,107450.0,1.04933761]
[1748465310231,0.85819555,107460.0,107450.0,1.06342069]
[1748465310428,1.04426795,107460.0,107450.0,1.06342029]
[1748465310628,1.04426795,107460.0,107450.0,1.04933761]
[1748465310939,1.04426795,107460.0,107450.0,0.93424224]
[1748465311429,1.04426795,107460.0,107450.0,0.94832732]
[1748465311737,1.04426795,107460.0,107450.0,0.93424224]
[1748465312037,1.04426795,107460.0,107450.0,0.96303913]
[1748465312834,1.04426795,107460.0,107450.0,0.97712578]
[1748465313339,1.04426795,107460.0,107450.0,0.97700578]
[1748465313547,1.04426795,107460.0,107450.0,0.97700478]
[1748465314740,0.85819555,107460.0,107450.0,0.97700585]
[1748465315137,0.85819555,107460.0,107450.0,0.97700573]
[1748465315454,1.04426785,107460.0,107450.0,0.97700807]
[1748465315742,0.85819555,107460.0,107450.0,0.97700745]
[1748465316237,0.85819555,107460.0,107450.0,0.97700683]
[1748465316542,0.85819555,107460.0,107450.0,0.76957497]
[1748465316741,0.85819555,107460.0,107450.0,0.97700682]
[1748465317539,1.23761191,107460.0,107450.0,0.97700682]
[1748465317745,1.30051191,107460.0,107450.0,1.03324799]
[1748465318041,1.30051191,107460.0,107450.0,0.49319142]
[1748465318250,1.51677966,107460.0,107450.0,0.4042543]
[1748465318545,1.3234355,107460.0,107450.0,0.58365311]
[1748465318747,1.3234355,107460.0,107450.0,0.5877427]
[1748465319138,1.3234355,107460.0,107450.0,0.575129]
[1748465319646,1.3234355,107460.0,107450.0,0.57512956]
[1748465319847,1.3234355,107460.0,107450.0,0.56103913]
[1748465320044,1.3234355,107460.0,107450.0,0.57513045]
[1748465320346,1.3234355,107460.0,107450.0,0.57513163]
[1748465321237,1.6842355,107460.0,107450.0,0.57513162]
[1748465321446,1.87757966,107460.0,107450.0,0.48063313]
[1748465321749,1.87757966,107460.0,107450.0,0.39083669]
[1748465321951,1.87757966,107460.0,107450.0,0.39079209]
[1748465321952,1.6842355,107460.0,107450.0,0.39079209]
[1748465322247,1.87757966,107460.0,107450.0,0.40359792]
[1748465322845,1.87757966,107460.0,107450.0,0.38951398]
[1748465323041,1.87757966,107460.0,107450.0,0.40361149]
[1748465323247,1.87757966,107460.0,107450.0,0.4036143]
[1748465323547,1.87757966,107460.0,107450.0,0.38951545]
[1748465323752,1.87757966,107460.0,107450.0,0.39091262]
[1748465324044,1.87757966,107460.0,107450.0,0.21751336]
[1748465324245,1.87757966,107460.0,107450.0,0.1861267]
[1748465324450,1.92118267,107460.0,107450.0,0.32902414]
[1748465324756,1.92118267,107460.0,107450.0,0.32914662]
[1748465324947,1.92118267,107460.0,107450.0,0.32902704]
[1748465325150,1.92118267,107460.0,107450.0,0.32918499]
[1748465325447,1.92118267,107460.0,107450.0,0.3291797]
[1748465325944,1.9211652,107460.0,107450.0,0.32917408]
[1748465326144,1.9211652,107460.0,107450.0,0.27167678]
[1748465326442,1.87757966,107460.0,107450.0,0.05870799]
[1748465326651,1.87757966,107460.0,107450.0,0.07279653]
[1748465326652,1.9211652,107460.0,107450.0,0.07279653]
[1748465326834,1.9211652,107460.0,107450.0,0.07152198]
[1748465327039,1.9211652,107460.0,107450.0,0.29860442]
[1748465327455,1.9211652,107460.0,107450.0,0.31269198]
[1748465327764,1.87757966,107460.0,107450.0,0.32549653]
[1748465327951,1.87757966,107460.0,107450.0,0.13940683]
[1748465328649,1.87757966,107460.0,107450.0,0.34160747]
[1748465328848,1.87757966,107460.0,107450.0,0.35569166]
[1748465329947,1.87757966,107460.0,107450.0,0.34288861]
[1748465330150,1.87757966,107460.0,107450.0,0.35571119]
[1748465330344,1.87757966,107460.0,107450.0,0.35568052]
[1748465330543,1.87757966,107460.0,107450.0,0.16959082]
[1748465330848,1.87757966,107460.0,107450.0,0.16947319]
[1748465331044,1.87757966,107460.0,107450.0,0.16959898]
[1748465331247,1.87757966,107460.0,107450.0,0.16960417]
[1748465331653,1.87757966,107460.0,107450.0,0.16960576]
[1748465331860,1.87757966,107460.0,107450.0,0.16960799]
[1748465332061,1.87757966,107460.0,107450.0,0.13941919]
[1748465332240,1.87757966,107460.0,107450.0,0.09637456]
[1748465332445,1.87757966,107460.0,107450.0,0.09625829]
[1748465332646,1.87757966,107460.0,107450.0,0.09637829]
[1748465332849,1.87757966,107460.0,107450.0,0.12747829]
[1748465333260,1.87757966,107460.0,107450.0,0.12747081]
[1748465333650,1.87757966,107460.0,107450.0,0.12747695]
[1748465333848,1.49089134,107460.0,107450.0,0.12747713]
[1748465334145,1.87757966,107460.0,107450.0,0.12747713]
[1748465334352,1.87757966,107460.0,107450.0,0.12747643]
[1748465334553,2.23837966,107460.0,107450.0,0.12747643]
[1748465335152,2.23837966,107460.0,107450.0,0.11460449]
[1748465335365,2.23837966,107460.0,107450.0,0.11337936]
[1748465335660,2.23809966,107460.0,107450.0,0.11460446]
[1748465335850,2.23809966,107460.0,107450.0,0.12747587]
[1748465336045,2.23809966,107460.0,107450.0,0.12747586]
[1748465336545,2.20609966,107460.0,107450.0,0.11337783]
[1748465336847,2.17589966,107460.0,107450.0,0.09637524]
[1748465337052,2.14319966,107460.0,107450.0,0.08350396]
[1748465337353,2.14319966,107460.0,107450.0,0.09636334]
[1748465337863,2.14319966,107460.0,107450.0,0.08226562]
[1748465338163,2.14319966,107460.0,107450.0,0.08350261]
[1748465338361,2.14319966,107460.0,107450.0,0.09635274]
[1748465338663,2.14319966,107460.0,107450.0,0.09634691]
[1748465339262,2.14319966,107460.0,107450.0,0.09634755]
[1748465339761,2.14319966,107460.0,107450.0,0.09634727]
[1748465339961,2.14319966,107460.0,107450.0,0.08349703]
[1748465340263,2.14319966,107460.0,107450.0,0.09634673]
[1748465340466,2.14319966,107460.0,107450.0,0.06965873]
[1748465340467,2.52314945,107460.0,107450.0,0.06965873]
[1748465340646,2.47960783,107460.0,107450.0,0.06965873]
[1748465340852,2.47960783,107460.0,107450.0,0.06954264]
[1748465341050,2.47960783,107460.0,107450.0,0.06966264]
[1748465341051,2.62484574,107460.0,107450.0,0.06966264]
[1748465341251,2.537668,107460.0,107450.0,0.06966264]
[1748465341664,2.537668,107460.0,107450.0,0.05681237]
[1748465341851,2.58119454,107460.0,107450.0,0.05681011]
[1748465342052,2.66837228,107460.0,107450.0,0.05681027]
[1748465342261,2.58119454,107460.0,107450.0,0.05681028]
[1748465342558,2.58119454,107460.0,107450.0,0.05680829]
[1748465343351,2.58119454,107460.0,107450.0,0.0568103]
[1748465343751,2.58119454,107460.0,107450.0,0.04271855]
[1748465344161,2.58119454,107460.0,107450.0,0.05681204]
[1748465344562,2.38765038,107460.0,107450.0,0.05681362]
[1748465345754,2.32959021,107460.0,107450.0,0.05681362]
[1748465346262,2.32959021,107460.0,107450.0,0.05681719]
[1748465346468,2.38765038,107460.0,107450.0,0.05681719]
[1748465346973,2.38765038,107460.0,107450.0,0.05681737]
[1748465347557,2.34412384,107460.0,107450.0,0.05681737]
[1748465347752,2.5810112,107460.0,107450.0,0.05681737]
[1748465348957,2.5810112,107460.0,107450.0,0.05682223]
[1748465349559,2.5810112,107460.0,107450.0,0.05682663]
[1748465349759,2.5810112,107460.0,107450.0,0.04271855]
[1748465349969,2.5810112,107460.0,107450.0,0.05682685]
[1748465350169,2.5810112,107460.0,107450.0,0.04271855]
[1748465351665,2.57512493,107460.0,107450.0,0.05683301]
[1748465351863,2.38178077,107460.0,107450.0,0.04271855]
[1748465352165,2.29463192,107460.0,107450.0,0.05683301]
[1748465352359,2.29463192,107460.0,107450.0,0.06965881]
[1748465352573,2.33823757,107460.0,107450.0,0.04271855]
[1748465352785,2.33823757,107460.0,107450.0,0.0696589]
[1748465353065,2.33823757,107460.0,107450.0,0.05683301]
[1748465353377,2.33823757,107460.0,107450.0,0.04271855]
[1748465353681,2.53158173,107460.0,107450.0,0.04271855]
[1748465353860,2.53158173,107460.0,107450.0,0.06974729]
[1748465354059,2.53158173,107460.0,107450.0,0.06970445]
[1748465354463,2.53158173,107460.0,107450.0,0.06970343]
[1748465354861,2.53158173,107460.0,107450.0,0.05558361]
[1748465355066,2.53158173,107460.0,107450.0,0.06968398]
[1748465355266,2.53158173,107460.0,107450.0,0.0696842]
[1748465355466,2.53158173,107460.0,107450.0,0.06968451]
[1748465356277,2.53158173,107460.0,107450.0,0.05683861]
[1748465356469,2.53158173,107460.0,107450.0,0.05683907]
[1748465356665,2.53158173,107460.0,107450.0,0.05556481]
[1748465357061,2.53158173,107460.0,107450.0,0.06968532]
[1748465357265,2.53158173,107460.0,107450.0,0.06968565]
[1748465357566,2.53158173,107460.0,107450.0,0.06968706]
[1748465357772,2.53158173,107460.0,107450.0,0.0696871]
[1748465357969,2.53158173,107460.0,107450.0,0.06968752]
[1748465358177,2.53158173,107460.0,107450.0,0.05684368]
[1748465358364,2.10026173,107460.0,107450.0,0.05556898]
[1748465358668,2.53150173,107460.0,107450.0,0.04271855]
[1748465358877,2.53150173,107460.0,107450.0,0.06969695]
[1748465359076,2.53150173,107460.0,107450.0,0.05557114]
[1748465359275,2.53150173,107460.0,107450.0,0.06969913]
[1748465359470,2.53150173,107460.0,107450.0,0.06969914]
[1748465359873,2.53150173,107460.0,107450.0,0.0696991]
[1748465360264,2.53150173,107460.0,107450.0,0.06970035]
[1748465360469,2.53150173,107460.0,107450.0,0.05684667]
[1748465360772,1.99838173,107460.0,107450.0,8e-08]
[1748465360978,0.0465255,107450.0,107420.0,0.11649167]
[1748465361185,0.1861419,107420.0,107410.0,0.12206258]
[1748465361479,0.1861419,107420.0,107390.0,0.3608]
[1748465361480,0.1861766,107400.0,107390.0,0.3608]
[1748465361681,0.69438524,107400.0,107390.0,0.5469939]
[1748465361879,0.6948883,107400.0,107390.0,0.81066692]
[1748465362180,0.33050306,107400.0,107390.0,0.74045806]
[1748465362482,0.51667956,107400.0,107390.0,0.74033806]
[1748465362681,0.51667956,107400.0,107390.0,0.74045806]
[1748465362882,0.51667956,107400.0,107390.0,0.74345806]
[1748465363875,0.51667956,107400.0,107390.0,0.74763771]
[1748465364483,0.51667956,107400.0,107390.0,0.5541139]
[1748465371677,0.51667956,107400.0,107390.0,0.5641139]
[1748465371982,0.76170306,107400.0,107390.0,0.75763771]
[1748465372188,0.33050306,107400.0,107390.0,0.75763771]
[1748465372482,0.00050306,107400.0,107390.0,0.75763771]
[1748465372886,0.00050306,107400.0,107390.0,0.99763771]
[1748465373974,0.00050306,107400.0,107390.0,1.02953771]
[1748465374389,0.00050306,107400.0,107390.0,0.8360139]
[1748465374582,0.03050306,107400.0,107390.0,0.6460139]
[1748465374777,0.03050306,107400.0,107390.0,0.83953771]
[1748465374974,0.03050306,107400.0,107390.0,0.87193771]
[1748465375181,0.00501861,107400.0,107390.0,0.87193771]
[1748465376675,0.00501861,107400.0,107390.0,0.90253771]
[1748465377484,0.00501861,107400.0,107390.0,1.01757686]
[1748465379478,0.06501861,107400.0,107390.0,1.01757686]
[1748465381977,0.06501861,107400.0,107390.0,1.10387477]
[1748465382375,0.06501861,107400.0,107390.0,1.01757686]
[1748465384686,0.06501861,107400.0,107390.0,1.08790572]
[1748465385983,0.06501861,107400.0,107390.0,1.08791917]
[1748465389690,0.06501861,107400.0,107390.0,1.23261661]
[1748465389888,0.06501861,107400.0,107390.0,1.08791917]
[1748465390581,0.06501861,107400.0,107390.0,1.0472486]
[1748465392493,0.06501861,107400.0,107390.0,1.11790274]
[1748465393399,0.06501861,107400.0,107390.0,1.11778274]
[1748465394501,0.06552167,107400.0,107390.0,1.11778274]
[1748465395793,0.06552167,107400.0,107390.0,1.0471286]
[1748465400396,0.06552167,107400.0,107390.0,0.85359134]
[1748465400591,0.06552167,107400.0,107390.0,1.0471286]
[1748465400790,0.06552167,107400.0,107390.0,1.11781757]
[1748465403093,0.06552167,107400.0,107390.0,1.31596842]
[1748465403287,0.06552167,107400.0,107390.0,1.2671286]
[1748465403492,0.06552167,107400.0,107390.0,1.12243116]
[1748465403697,0.06552167,107400.0,107390.0,1.19312013]
[1748465404299,0.25169817,107400.0,107390.0,0.8982939]
[1748465404502,0.75623543,107400.0,107390.0,0.38299433]
[1748465404696,0.78763543,107400.0,107390.0,0.57653159]
[1748465404896,0.78763543,107400.0,107390.0,0.57665159]
[1748465405293,0.78763543,107400.0,107390.0,0.56653159]
[1748465406201,0.98117269,107400.0,107390.0,0.37311433]
[1748465406403,1.14843543,107400.0,107390.0,0.37299433]
[1748465406695,1.14843543,107400.0,107390.0,0.56665159]
[1748465407291,1.44357269,107400.0,107390.0,0.15502043]
[1748465407493,1.44357269,107400.0,107390.0,0.20927278]
[1748465407793,1.53722106,107400.0,107390.0,0.1515453]
[1748465407991,1.73075832,107400.0,107390.0,0.06489295]
[1748465408190,2.07387432,107400.0,107390.0,0.07754777]
[1748465408390,2.13201058,107400.0,107390.0,0.01965482]
[1748465408592,2.13197459,107400.0,107390.0,0.01965482]
[1748465408787,2.13197459,107400.0,107390.0,0.01977482]
[1748465408986,2.13197459,107400.0,107390.0,0.01965482]
[1748465409193,2.13197459,107400.0,107390.0,0.01979981]
[1748465409391,2.13197459,107400.0,107390.0,0.01967776]
[1748465409591,2.13197459,107400.0,107390.0,0.01679056]
[1748465409800,2.13197459,107400.0,107390.0,0.01279056]
[1748465409990,1.93874435,107400.0,107390.0,0.01279056]
[1748465410185,1.93874435,107400.0,107390.0,0.00012]
[1748465410396,1.88060809,107400.0,107390.0,0.01278856]
[1748465410592,1.88060809,107400.0,107390.0,0.01278907]
[1748465410994,1.88060809,107400.0,107390.0,0.00012]
[1748465411194,1.63060809,107400.0,107390.0,0.01278473]
[1748465411686,1.63060809,107400.0,107390.0,0.00012]
[1748465412607,1.63060809,107400.0,107390.0,0.01280297]
[1748465412908,1.24322655,107400.0,107390.0,0.01280297]
[1748465413107,1.63060809,107400.0,107390.0,0.00012]
[1748465413599,1.63060809,107400.0,107390.0,0.0128207]
[1748465413993,1.63060809,107400.0,107390.0,0.01281721]
[1748465414197,1.63060809,107400.0,107390.0,0.01281672]
[1748465414402,1.63060809,107400.0,107390.0,0.01281673]
[1748465414606,1.63060809,107400.0,107390.0,0.01281606]
[1748465414791,1.63060809,107400.0,107390.0,0.00012]
[1748465414997,1.63060809,107400.0,107390.0,0.01281437]
[1748465415508,1.53749209,107400.0,107390.0,0.01281485]
[1748465415802,1.34380132,107400.0,107390.0,0.01281485]
[1748465416001,1.34380132,107400.0,107390.0,0.00012]
[1748465416400,1.34380132,107400.0,107390.0,0.01281672]
[1748465417099,1.34380132,107400.0,107390.0,0.01282155]
[1748465417293,1.34370666,107400.0,107390.0,0.01282155]
[1748465417495,1.34370666,107400.0,107390.0,0.01282387]
[1748465417705,1.73106894,107400.0,107390.0,0.01280467]
[1748465418301,1.73106894,107400.0,107390.0,0.01274734]
[1748465418697,1.73106894,107400.0,107390.0,0.01274937]
[1748465419098,1.73106894,107400.0,107390.0,0.01275048]
[1748465419304,1.73106894,107400.0,107390.0,0.00012]
[1748465419509,1.73106894,107400.0,107390.0,0.01275047]
[1748465419711,1.73106894,107400.0,107390.0,0.01275048]
[1748465419899,1.73106894,107400.0,107390.0,0.00012]
[1748465420212,1.73106894,107400.0,107390.0,0.01275026]
[1748465420507,1.73106894,107400.0,107390.0,0.04565047]
[1748465420699,1.73106894,107400.0,107390.0,0.04565366]
[1748465420895,1.73106894,107400.0,107390.0,0.03302]
[1748465421101,1.73106894,107400.0,107390.0,0.04565364]
[1748465421301,1.73106894,107400.0,107390.0,0.04565661]
[1748465421501,1.73106894,107400.0,107390.0,0.03302]
[1748465421699,1.73106894,107400.0,107390.0,0.04565586]
[1748465422111,1.73106894,107400.0,107390.0,0.03302]
[1748465422310,1.73106894,107400.0,107390.0,0.04565581]
[1748465423013,2.09186894,107400.0,107390.0,0.04565687]
[1748465423215,2.09186894,107400.0,107390.0,0.03302]
[1748465424415,2.28555971,107400.0,107390.0,0.03302]
[1748465424712,2.29477972,107400.0,107390.0,0.01276394]
[1748465424915,2.10108895,107400.0,107390.0,0.04416394]
[1748465425810,2.10108895,107400.0,107390.0,0.04696684]
[1748465426023,2.10108895,107400.0,107390.0,0.03431]
[1748465427911,1.56860895,107400.0,107390.0,0.03431]
[1748465428109,2.10092895,107400.0,107390.0,0.03431]
[1748465428418,2.10092895,107400.0,107390.0,0.04695861]
[1748465428918,2.33813062,107400.0,107390.0,0.04695366]
[1748465429723,2.33813062,107400.0,107390.0,0.04698767]
[1748465429915,2.33813062,107400.0,107390.0,0.07779638]
[1748465429916,2.33806178,107400.0,107390.0,0.07779638]
[1748465430218,2.33806178,107400.0,107390.0,0.06511]
[1748465430422,2.33808115,107400.0,107390.0,0.06511]
[1748465430923,2.33808115,107400.0,107390.0,0.07777314]
[1748465431730,2.33808115,107400.0,107390.0,0.0470085]
[1748465431913,2.33808115,107400.0,107390.0,0.0468885]
[1748465432114,2.33808115,107400.0,107390.0,0.0470085]
[1748465432309,2.33808115,107400.0,107390.0,0.04701096]
[1748465432514,2.33808115,107400.0,107390.0,0.04701095]
[1748465432822,2.33808115,107400.0,107390.0,0.04701153]
[1748465433618,2.33808115,107400.0,107390.0,0.04701225]
[1748465433821,2.33808115,107400.0,107390.0,0.07801225]
[1748465434113,2.33808115,107400.0,107390.0,0.06531]
[1748465434320,2.33808115,107400.0,107390.0,0.07801231]
[1748465434321,2.39621741,107400.0,107390.0,0.07801231]
[1748465435422,2.39621741,107400.0,107390.0,0.06531]
[1748465435622,2.39621741,107400.0,107390.0,0.07801496]
[1748465435819,2.39621741,107400.0,107390.0,0.07802416]
[1748465436025,2.39621741,107400.0,107390.0,0.07802413]
[1748465436224,2.39621741,107400.0,107390.0,0.12126813]
[1748465436719,2.39621741,107400.0,107390.0,0.10855399]
[1748465436920,2.39621741,107400.0,107390.0,0.12126867]
[1748465437226,2.39621741,107400.0,107390.0,0.12126968]
[1748465437227,2.43989153,107400.0,107390.0,0.12126968]
[1748465437524,2.43989153,107400.0,107390.0,0.12126932]
[1748465437724,0.1861938,107390.0,107380.0,0.14456547]
[1748465437923,0.1861938,107390.0,107370.0,0.09005658]
[1748465437924,0.2362111,107380.0,107370.0,0.09005658]
[1748465438108,2.06802829,107380.0,107370.0,0.12085651]
[1748465438315,2.03903737,107380.0,107370.0,0.063]
[1748465438714,2.12674482,107380.0,107370.0,0.063]
[1748465438914,1.90278847,107380.0,107370.0,0.063]
[1748465439117,1.82892837,107380.0,107370.0,0.065]
[1748465439313,1.82892837,107380.0,107370.0,0.06512]
[1748465439314,1.78535286,107380.0,107370.0,0.06512]
[1748465439524,1.78535286,107380.0,107370.0,0.065]
[1748465439729,1.78535286,107380.0,107370.0,0.06512]
[1748465439920,1.78537347,107380.0,107370.0,0.06512]
[1748465440227,1.78537347,107380.0,107370.0,0.06312]
[1748465440422,1.59169651,107380.0,107370.0,0.06312]
[1748465440622,1.73537347,107380.0,107370.0,0.06312]
[1748465441113,1.73537347,107380.0,107370.0,0.09612]
[1748465441317,1.67716,107380.0,107370.0,0.09612]
[1748465443432,1.6771088,107380.0,107370.0,0.09612]
[1748465444718,1.2463488,107380.0,107370.0,0.09612]
[1748465444927,1.6771088,107380.0,107370.0,0.09612]
[1748465445225,0.1862284,107370.0,107360.0,0.00293017]
[1748465445432,0.1862804,107340.0,107330.0,0.31957154]
[1748465445636,1.40376548,107340.0,107330.0,0.07208646]
[1748465445823,1.59744244,107340.0,107330.0,0.25838426]
[1748465446028,0.69130306,107340.0,107330.0,0.38137225]
[1748465446331,0.07050306,107340.0,107330.0,1.13229225]
[1748465446521,0.07050306,107340.0,107330.0,1.24767268]
[1748465446840,0.07050306,107340.0,107330.0,1.25267268]
[1748465447222,0.07050306,107340.0,107330.0,1.00779268]
[1748465448626,0.07050306,107340.0,107330.0,1.07129268]
[1748465449630,0.25678356,107340.0,107330.0,1.07129268]
[1748465449836,0.07050306,107340.0,107330.0,1.51514965]
[1748465450134,0.00014017,107350.0,107340.0,0.1862805]
[1748465450135,0.18640907,107350.0,107340.0,0.1862805]
[1748465450320,0.23014017,107350.0,107340.0,1.56260791]
[1748465450527,0.23014017,107350.0,107340.0,1.65576391]
[1748465450726,0.41640337,107350.0,107340.0,3.11107939]
[1748465451131,0.41640337,107350.0,107340.0,3.29870977]
[1748465451318,0.23014017,107350.0,107340.0,3.29870977]
[1748465451929,0.23014017,107350.0,107340.0,3.29871123]
[1748465452123,0.23014017,107350.0,107340.0,3.25577683]
[1748465452330,0.23014017,107350.0,107340.0,3.2987144]
[1748465452827,0.41640337,107350.0,107340.0,3.3017144]
[1748465453033,0.41640337,107350.0,107340.0,3.3057144]
[1748465455034,0.23014017,107350.0,107340.0,3.3057144]
[1748465455535,0.23014017,107350.0,107340.0,3.23502543]
[1748465456429,0.23014017,107350.0,107340.0,3.23502643]
[1748465458131,0.23014017,107350.0,107340.0,2.98502643]
[1748465458932,0.03014017,107350.0,107340.0,2.98502643]
[1748465459330,0.00014017,107350.0,107340.0,2.98502643]
[1748465460435,3e-08,107350.0,107340.0,3.35302005]
[1748465460635,3e-08,107350.0,107340.0,3.92797165]
[1748465460837,3e-08,107350.0,107340.0,4.11488217]
[1748465461139,3e-08,107350.0,107340.0,4.19693251]
[1748465461637,3e-08,107350.0,107340.0,4.06501564]
[1748465462635,3e-08,107350.0,107340.0,4.14706598]
[1748465463635,3e-08,107350.0,107340.0,4.19695865]
[1748465464136,3e-08,107350.0,107340.0,4.14706598]
[1748465464437,8e-08,107350.0,107340.0,4.19696019]
[1748465464642,8e-08,107350.0,107340.0,4.19696183]
[1748465464830,8e-08,107350.0,107340.0,4.19696114]
[1748465465342,8e-08,107350.0,107340.0,3.66496114]
[1748465465542,8e-08,107350.0,107340.0,0.45708318]
[1748465465543,0.51994004,107350.0,107340.0,0.45708318]
[1748465465727,1.11074004,107350.0,107340.0,0.3367756]
[1748465465926,1.17424004,107350.0,107340.0,0.22371085]
[1748465466137,1.17424004,107350.0,107340.0,0.33941625]
[1748465466337,1.17424004,107350.0,107340.0,0.31043389]
[1748465466639,1.17424004,107350.0,107340.0,0.2239005]
[1748465466839,1.17424004,107350.0,107340.0,0.28005389]
[1748465467842,1.17424004,107350.0,107340.0,0.2511708]
[1748465468445,0.98056308,107350.0,107340.0,0.2511708]
[1748465473250,1.17424004,107350.0,107340.0,0.2511708]
[1748465473437,1.17424004,107350.0,107340.0,0.2510508]
[1748465473634,1.17424004,107350.0,107340.0,0.2511708]
[1748465473844,1.18362874,107350.0,107340.0,0.2511708]
[1748465475245,1.28502874,107350.0,107340.0,0.2511708]
[1748465476342,1.28502874,107350.0,107340.0,0.2510508]
[1748465476644,1.28502874,107350.0,107340.0,0.1934005]
[1748465477455,1.27564004,107350.0,107340.0,0.2511708]
[1748465477638,1.70624004,107350.0,107340.0,0.2511708]
[1748465477852,1.71556057,107350.0,107340.0,0.2511708]
[1748465478353,1.70624004,107350.0,107340.0,0.2511708]
[1748465479441,1.71570537,107350.0,107340.0,0.2511708]
[1748465480246,1.70624004,107350.0,107340.0,0.2511708]
[1748465481052,1.70624004,107350.0,107340.0,0.1934005]
[1748465481245,1.70624004,107350.0,107340.0,0.2511708]
[1748465481662,1.51252308,107350.0,107340.0,0.2511708]
[1748465481958,0.72116308,107350.0,107340.0,0.3138708]
[1748465482142,1.15172308,107350.0,107340.0,0.3138708]
[1748465484257,1.70620004,107350.0,107340.0,0.3138708]
[1748465486659,1.70620004,107350.0,107340.0,0.3166608]
[1748465491261,1.70620004,107350.0,107340.0,0.40331419]
[1748465493263,1.73890004,107350.0,107340.0,0.40331419]
[1748465494065,1.73870004,107350.0,107340.0,0.40331419]
[1748465494258,1.73870004,107350.0,107340.0,0.37684389]
[1748465494459,1.54502308,107350.0,107340.0,0.37684389]
[1748465495258,1.18422308,107350.0,107340.0,0.47640135]
[1748465496966,1.54502308,107350.0,107340.0,0.47640135]
[1748465500066,1.18422308,107350.0,107340.0,0.47640135]
[1748465503259,1.18422308,107350.0,107340.0,0.40570625]
[1748465503469,1.18422308,107350.0,107340.0,0.47640135]
[1748465504463,1.18422308,107350.0,107340.0,0.40570625]
[1748465504663,1.18422308,107350.0,107340.0,0.40291625]
[1748465504863,1.18422308,107350.0,107340.0,0.47361135]
[1748465505770,1.54502308,107350.0,107340.0,0.47361135]
[1748465505975,1.73870004,107350.0,107340.0,0.47361135]
[1748465506366,1.73870004,107350.0,107340.0,0.40291625]
[1748465506877,1.73870004,107350.0,107340.0,0.40570625]
[1748465507072,1.37790004,107350.0,107340.0,0.40570625]
[1748465507975,1.73870004,107350.0,107340.0,0.40570625]
[1748465508177,1.73870004,107350.0,107340.0,0.37440625]
[1748465508373,1.73870004,107350.0,107340.0,0.37428625]
[1748465513971,1.73877971,107350.0,107340.0,0.37428625]
[1748465515272,1.73877971,107350.0,107340.0,0.38428625]
[1748465516172,1.73877971,107350.0,107340.0,0.45498135]
[1748465521479,1.30829971,107350.0,107340.0,0.45498135]
[1748465521682,1.73861971,107350.0,107340.0,0.45498135]
[1748465521891,1.73861971,107350.0,107340.0,0.48578135]
[1748465523475,1.73861971,107350.0,107340.0,0.45498135]
[1748465525081,1.73861971,107350.0,107340.0,0.44498135]
[1748465525494,1.73861971,107350.0,107340.0,0.37428625]
[1748465525992,1.73842643,107350.0,107340.0,0.37428625]
[1748465526376,1.74294198,107350.0,107340.0,0.37428625]
[1748465526899,1.74294198,107350.0,107340.0,0.2587705]
[1748465527192,1.74294198,107350.0,107340.0,0.37428625]
[1748465528094,1.38194198,107350.0,107340.0,0.37428625]
[1748465528282,1.74274198,107350.0,107340.0,0.37428625]
[1748465530981,1.93649861,107350.0,107340.0,0.12530575]
[1748465531181,2.0382832,107350.0,107340.0,0.096754]
[1748465531385,2.0382832,107350.0,107340.0,0.1547352]
[1748465531583,2.0382832,107350.0,107340.0,0.0678912]
[1748465532181,2.0382832,107350.0,107340.0,0.00691]
[1748465532386,1.65709084,107350.0,107340.0,0.00879]
[1748465532691,2.0446041,107350.0,107340.0,0.00491]
[1748465532884,2.13180849,107350.0,107340.0,0.00491]
[1748465533084,2.13180849,107350.0,107340.0,0.00291]
[1748465533284,2.17544984,107350.0,107340.0,0.00291]
[1748465534185,1.72744545,107350.0,107340.0,0.00291]
[1748465534380,2.44904545,107350.0,107340.0,0.00291]
[1748465538785,2.06153219,107350.0,107340.0,0.00291]
[1748465538983,2.44904545,107350.0,107340.0,0.00291]
[1748465539397,2.25528882,107350.0,107340.0,0.00291]
[1748465540491,2.19718333,107350.0,107340.0,0.00291]
[1748465542197,2.0034267,107350.0,107340.0,0.00291]
[1748465542397,2.19718333,107350.0,107340.0,0.00291]
[1748465543499,2.39093996,107350.0,107340.0,0.00291]
[1748465543798,2.39088197,107350.0,107340.0,0.00291]
[1748465544587,2.44898746,107350.0,107340.0,0.00291]
[1748465544999,2.39088197,107350.0,107340.0,0.00291]
[1748465545591,2.39088136,107350.0,107340.0,0.00291]
[1748465547290,2.44898685,107350.0,107340.0,0.00291]
[1748465548190,2.4489881,107350.0,107340.0,0.00291]
[1748465551392,2.4489881,107350.0,107340.0,0.00279]
[1748465551600,2.4489881,107350.0,107340.0,0.00291]
[1748465552496,2.4489994,107350.0,107340.0,0.00291]
[1748465554402,2.4489994,107350.0,107340.0,0.00279]
[1748465554600,2.4489994,107350.0,107340.0,0.00291]
[1748465554989,2.4489994,107350.0,107330.0,0.0579812]
[1748465554990,0.1862805,107340.0,107330.0,0.0579812]
[1748465555191,0.1862805,107340.0,107320.0,0.08710417]
[1748465555192,0.1862978,107330.0,107320.0,0.06045667]
[1748465555405,1.91586025,107330.0,107320.0,0.03044017]
[1748465556094,1.91586025,107330.0,107320.0,0.06146017]
[1748465556295,1.91586025,107330.0,107320.0,0.06246017]
[1748465556798,1.7221,107330.0,107320.0,0.06246017]
[1748465557591,1.7221,107330.0,107320.0,0.06346017]
[1748465561197,1.78022099,107330.0,107320.0,0.06346017]